bitfinex/quotes_SOLUSD_20260115
["timestamp","ask_amount","ask_price","bid_price","bid_amount"]
[1768488805235,6.61760166,144.08,144.02,1.36226882]
[1768488805557,6.61760166,144.09,144.05,1.36226882]
[1768488805742,12.66,144.1,144.05,1.36226882]
[1768488805743,19.27760166,144.1,144.05,1.36226882]
[1768488805938,6.61760166,144.08,144.03,1.36226882]
[1768488806159,6.61760166,144.05,143.99,1.36226882]
[1768488806360,6.61760166,144.01,143.97,1.36226882]
[1768488806531,6.61760166,144.0,143.97,1.36226882]
[1768488806958,6.61760166,144.01,143.97,8.30815032]
[1768488808459,6.94401524,144.01,143.95,1.36226882]
[1768488808648,6.61760166,144.0,143.95,8.309007]
[1768488808959,6.61760166,143.99,143.95,1.36226882]
[1768488809168,16.97764383,144.1,143.99,1.36226882]
[1768488809461,6.94010687,144.09,144.03,1.36226882]
[1768488809637,13.55770853,144.09,144.04,1.36226882]
[1768488809832,16.97764383,144.1,144.05,8.30430283]
[1768488810038,16.97764383,144.1,144.06,1.36226882]
[1768488810939,4.31764383,144.1,144.07,7.97987048]
[1768488811171,4.31764383,144.1,144.07,7.94987048]
[1768488811576,4.31764383,144.1,144.07,1.33226882]
[1768488812276,6.93866844,144.12,144.07,1.33226882]
[1768488812460,26.21566873,144.14,144.08,6.61760166]
[1768488812772,6.61760166,144.13,144.07,6.61760166]
[1768488812943,0.1,144.15,144.08,24.29205996]
[1768488813150,6.71760166,144.15,144.09,1.36226882]
[1768488813358,19.37760166,144.15,144.09,1.36226882]
[1768488813674,19.27760166,144.14,144.09,1.36226882]
[1768488813869,12.66,144.14,144.1,1.36226882]
[1768488814050,12.66,144.13,144.1,1.36226882]
[1768488815045,12.66,144.13,144.1,8.30185076]
[1768488815242,7.03749465,144.15,144.11,1.36226882]
[1768488815450,12.66,144.13,144.09,1.36226882]
[1768488815753,12.66,144.13,144.1,8.30187937]
[1768488816358,12.66,144.12,144.1,8.30187937]
[1768488816656,12.66,144.12,144.1,14.91948103]
[1768488816960,13.65509631,144.15,144.1,8.30187937]
[1768488817167,12.66,144.14,144.11,1.36226882]
[1768488817874,12.66,144.14,144.09,13.55760711]
[1768488818055,19.27760166,144.14,144.09,6.94000545]
[1768488818249,7.03749465,144.15,144.11,1.36226882]
[1768488818452,12.66,144.14,144.11,1.36226882]
[1768488819174,0.14216157,144.13,144.07,1.36226882]
[1768488819478,12.66,144.12,144.08,19.03049242]
[1768488819672,12.66,144.11,144.08,19.03049242]
[1768488819976,12.66,144.11,144.08,12.09021192]
[1768488820162,12.66,144.11,144.08,1.36226882]
[1768488821069,10.7279431,144.1,144.04,1.36226882]
[1768488821253,10.7279431,144.1,144.05,12.09021192]
[1768488821457,10.7279431,144.1,144.05,19.03191156]
[1768488821652,10.7279431,144.1,144.05,12.09021192]
[1768488821859,19.59941863,144.11,144.05,12.09021192]
[1768488822064,10.7279431,144.1,144.05,12.09021192]
[1768488822262,10.7279431,144.1,144.06,1.36226882]
[1768488822573,10.87010467,144.1,144.04,1.36226882]
[1768488822776,10.7279431,144.09,144.04,1.36226882]
[1768488822974,6.94010687,144.09,144.05,1.36226882]
[1768488823956,12.66,144.08,144.05,1.36226882]
[1768488824157,12.66,144.08,144.06,1.36226882]
[1768488825056,12.66,144.07,144.06,1.36226882]
[1768488825480,0.14216157,144.12,144.06,1.36226882]
[1768488825481,0.1,144.15,144.07,1.36226882]
[1768488825780,0.1,144.15,144.12,1.36226882]
[1768488825781,12.66,144.14,144.12,1.36226882]
[1768488825982,7.03743038,144.15,144.14,1.36226882]
[1768488825983,0.1,144.15,144.14,1.36226882]
[1768488826282,11.55838642,144.15,144.14,1.36226882]
[1768488826578,11.55838642,144.15,144.13,1.36226882]
[1768488826961,11.55838642,144.15,144.13,12.09021192]
[1768488827161,11.55838642,144.15,144.13,19.02821434]
[1768488827394,10.35677284,144.15,144.13,19.02821434]
[1768488827567,12.66,144.17,144.14,10.7279431]
[1768488827766,12.66,144.17,144.13,8.30027124]
[1768488827767,0.81717798,144.19,144.13,24.28345444]
[1768488827973,0.1,144.2,144.17,10.7279431]
[1768488828281,1.37898321,144.19,144.13,24.28345444]
[1768488828470,1.37898321,144.19,144.14,10.7279431]
[1768488828884,1.37898321,144.17,144.12,6.93853723]
[1768488829074,1.37898321,144.16,144.12,17.66648033]
[1768488829669,1.37898321,144.15,144.11,17.66693858]
[1768488829923,0.1,144.2,144.14,10.7279431]
[1768488830189,20.97217546,144.24,144.19,10.7279431]
[1768488830488,1.37898321,144.23,144.19,10.7279431]
[1768488830968,110.03256308,144.25,144.2,10.7279431]
[1768488831171,12.66,144.24,144.2,6.93439082]
[1768488831372,12.66,144.25,144.2,17.66233392]
[1768488831570,13.80505581,144.25,144.19,6.93517315]
[1768488831770,13.80505581,144.25,144.2,17.66267059]
[1768488831970,0.1,144.26,144.2,6.93472749]
[1768488832175,0.1,144.26,144.2,24.27175939]
[1768488832373,0.1,144.26,144.24,10.7279431]
[1768488832771,0.1,144.26,144.2,24.27175939]
[1768488833084,1.24505581,144.26,144.2,24.27175939]
[1768488833285,0.1,144.26,144.18,58.95311713]
[1768488833483,0.1,144.26,144.23,10.7279431]
[1768488834290,1.24505581,144.26,144.18,36.93521153]
[1768488834589,13.90505581,144.26,144.22,10.7279431]
[1768488834785,1.14505581,144.25,144.21,10.7279431]
[1768488835163,1.14505581,144.25,144.18,24.27521153]
[1768488835164,6.93288962,144.24,144.2,10.7279431]
[1768488835391,1.14505581,144.25,144.13,0.04071551]
[1768488835392,1.14505581,144.23,144.13,0.04071551]
[1768488835688,0.14216157,144.24,144.2,10.7279431]
[1768488835889,1.14505581,144.23,144.19,10.7279431]
[1768488836278,1.14505581,144.23,144.18,17.66359575]
[1768488836474,1.14505581,144.23,144.18,6.93565265]
[1768488836771,1.14505581,144.22,144.18,10.7279431]
[1768488836976,1.14505581,144.22,144.18,17.66359443]
[1768488837408,1.14505581,144.22,144.17,6.9361897]
[1768488837788,1.14505581,144.21,144.17,6.9361897]
[1768488838282,1.14505581,144.21,144.16,6.93660784]
[1768488838486,1.14505581,144.21,144.17,17.6640935]
[1768488838681,1.14505581,144.21,144.18,10.7279431]
[1768488839468,1.14505581,144.21,144.16,6.93673695]
[1768488839669,1.14505581,144.21,144.18,10.7279431]
[1768488839870,3.65700006,144.27,144.22,10.7279431]
[1768488840172,7.03198343,144.26,144.2,10.7279431]
[1768488840385,17.75992653,144.26,144.2,10.7279431]
[1768488840571,7.03198343,144.26,144.22,10.7279431]
[1768488840772,7.03198343,144.26,144.19,1.05458448]
[1768488840773,12.64,144.25,144.17,1.05458448]
[1768488841088,10.87010467,144.24,144.16,6.93673695]
[1768488841398,0.14216157,144.24,144.18,1.05458448]
[1768488841690,12.64,144.25,144.21,10.7279431]
[1768488841889,13.78505581,144.25,144.2,17.66256039]
[1768488842294,13.78505581,144.25,144.21,10.7279431]
[1768488842887,1.14505581,144.25,144.22,10.7279431]
[1768488843190,12.74,144.26,144.22,10.7279431]
[1768488843495,12.74,144.26,144.21,6.93412684]
[1768488843496,0.1,144.26,144.21,25.32454101]
[1768488843696,0.1,144.26,144.22,10.7279431]
[1768488843876,1.14505581,144.25,144.21,6.93412684]
[1768488844195,0.1,144.26,144.21,10.7279431]
[1768488844196,7.03203982,144.26,144.21,10.7279431]
[1768488844389,8.17709563,144.26,144.21,17.66214259]
[1768488844586,0.1,144.26,144.23,10.7279431]
[1768488844795,0.1,144.26,144.21,7.98878397]
[1768488845095,0.1,144.26,144.23,6.93337031]
[1768488845300,0.1,144.26,144.24,10.7279431]
[1768488845604,3.65700006,144.27,144.23,25.32138056]
[1768488845903,3.65700006,144.27,144.24,10.7279431]
[1768488846490,4.80205587,144.27,144.23,6.93337031]
[1768488846676,4.80205587,144.27,144.23,17.66131341]
[1768488847084,3.65700006,144.27,144.23,6.93337031]
[1768488847293,1.14505581,144.26,144.22,17.66162863]
[1768488847598,10.58859115,144.27,144.24,10.7279431]
[1768488847599,3.65700006,144.27,144.24,10.7279431]
[1768488848002,1.14505581,144.26,144.23,6.93336572]
[1768488848297,1.14505581,144.24,144.21,6.93429052]
[1768488848501,12.64,144.25,144.19,18.39224591]
[1768488848677,24.51299891,144.25,144.19,29.12018901]
[1768488848878,13.78505581,144.24,144.2,6.93475676]
[1768488849194,13.78505581,144.24,144.16,6.9365604]
[1768488849195,1.14505581,144.21,144.16,6.9365604]
[1768488849377,13.78505581,144.2,144.14,17.34358874]
[1768488849572,13.78505581,144.2,144.14,18.39817322]
[1768488849774,1.14505581,144.22,144.18,6.93576619]
[1768488849976,13.78505581,144.21,144.18,6.93576619]
[1768488850192,8.07701988,144.26,144.2,11.78252758]
[1768488850396,1.14505581,144.23,144.19,6.93514986]
[1768488850907,1.14505581,144.23,144.18,10.7279431]
[1768488851090,1.14505581,144.23,144.19,6.93525947]
[1768488851288,1.14505581,144.23,144.18,10.7279431]
[1768488851289,1.14505581,144.22,144.18,6.93558142]
[1768488851599,1.14505581,144.19,144.15,6.93691648]
[1768488851783,1.14505581,144.19,144.16,6.93659716]
[1768488852804,10.7279431,144.2,144.15,6.93721817]
[1768488853101,10.7279431,144.2,144.15,17.66516127]
[1768488853102,1.14505581,144.2,144.15,17.66516127]
[1768488853403,17.33342577,144.23,144.16,1.05458448]
[1768488853404,24.51299891,144.22,144.16,1.05458448]
[1768488853588,6.93356843,144.23,144.15,24.2802636]
[1768488853589,8.22026656,144.24,144.18,1.05458448]
[1768488853902,18.80604809,144.24,144.18,11.78252758]
[1768488854084,10.7279431,144.23,144.18,1.05458448]
[1768488854398,11.87299891,144.21,144.15,47.6482067]
[1768488854595,1.28721738,144.23,144.16,1.05458448]
[1768488854793,8.07810499,144.24,144.19,6.9352937]
[1768488854981,18.80604809,144.24,144.19,6.9352937]
[1768488855299,17.3302718,144.26,144.2,1.05458448]
[1768488855300,11.87299891,144.26,144.2,1.05458448]
[1768488855498,6.93247033,144.25,144.2,1.05458448]
[1768488855801,8.07752614,144.25,144.2,1.05458448]
[1768488856184,18.80546924,144.25,144.2,1.05458448]
[1768488856384,11.87299891,144.24,144.19,6.9352937]
[1768488856601,1.14505581,144.21,144.18,6.93576282]
[1768488856799,8.07842612,144.23,144.17,1.05458448]
[1768488857003,18.80636922,144.23,144.18,6.93549471]
[1768488857194,8.07842612,144.23,144.17,18.71859873]
[1768488857378,1.14505581,144.22,144.17,36.05923825]
[1768488857583,1.14505581,144.21,144.17,6.93607115]
[1768488857985,1.14505581,144.19,144.15,6.93694127]
[1768488858394,11.87299891,144.19,144.14,6.93753435]
[1768488858802,1.14505581,144.19,144.14,6.93753435]
[1768488859002,10.7279431,144.18,144.14,6.93753435]
[1768488859306,8.08047377,144.19,144.11,17.34755321]
[1768488859307,1.14505581,144.16,144.11,17.34755321]
[1768488859690,1.14505581,144.16,144.12,6.93849429]
[1768488859996,11.87299891,144.16,144.12,6.93849429]
[1768488861309,11.87299891,144.16,144.09,12.64]
[1768488861310,12.39567666,144.15,144.11,6.9391437]
[1768488861511,1.66773356,144.15,144.11,6.9391437]
[1768488861804,8.60415015,144.17,144.11,8.58983974]
[1768488861994,1.66773356,144.16,144.11,19.31778284]
[1768488862192,12.39567666,144.16,144.11,8.58983974]
[1768488862719,10.7279431,144.19,144.13,10.7279431]
[1768488862888,12.39567666,144.19,144.13,12.37863914]
[1768488863086,8.74432499,144.21,144.14,10.7279431]
[1768488863397,12.39567666,144.19,144.13,1.65069604]
[1768488863600,24.27025955,144.21,144.13,6.93786332]
[1768488863601,12.33567667,144.18,144.13,6.93786332]
[1768488863804,12.33567667,144.18,144.13,17.66580642]
[1768488864001,1.66773356,144.18,144.14,6.93757064]
[1768488864192,12.60819941,144.2,144.15,6.93719423]
[1768488864590,12.46603784,144.19,144.15,6.93719423]
[1768488864794,12.46603784,144.19,144.14,6.93756194]
[1768488864795,1.73809474,144.19,144.14,6.93756194]
[1768488864987,1.73809474,144.19,144.15,6.93698757]
[1768488865187,21.3125246,144.21,144.15,6.93698757]
[1768488865488,10.7279431,144.2,144.15,6.93698757]
[1768488865681,1.73809474,144.21,144.16,12.35923824]
[1768488865886,1.73809474,144.25,144.19,10.7279431]
[1768488866093,1.73809474,144.25,144.2,10.7279431]
[1768488866288,19.3976405,144.27,144.21,1.63129514]
[1768488866492,19.3976405,144.27,144.16,12.64]
[1768488866493,1.73809474,144.25,144.2,10.7279431]
[1768488867391,8.6696974,144.27,144.22,10.7279431]
[1768488867602,19.3976405,144.27,144.21,19.29357011]
[1768488868407,1.73809474,144.26,144.2,17.33632526]
[1768488868606,8.67013451,144.26,144.2,18.9676204]
[1768488868796,1.73809474,144.24,144.19,6.9352937]
[1768488869000,1.73809474,144.24,144.19,17.6632368]
[1768488869211,1.73809474,144.26,144.2,10.7279431]
[1768488869410,4.30873863,144.28,144.24,12.35923824]
[1768488869615,0.1,144.3,144.27,1.63129514]
[1768488869616,1e-08,144.3,144.27,1.63129514]
[1768488870025,1e-08,144.3,144.28,10.7279431]
[1768488870319,1.73809475,144.3,144.26,10.7279431]
[1768488870616,1.73809475,144.3,144.25,10.7279431]
[1768488870914,1.73809475,144.3,144.24,8.56418476]
[1768488871110,12.46603785,144.3,144.24,8.56418476]
[1768488871309,19.39607949,144.3,144.24,19.29212786]
[1768488871514,1.73809475,144.3,144.24,19.29212786]
[1768488871811,1.73809474,144.29,144.23,19.57332728]
[1768488871994,1.73809474,144.29,144.23,8.56462242]
[1768488872194,1e-08,144.3,144.24,1.63129514]
[1768488872395,1e-08,144.3,144.26,17.65987156]
[1768488873003,1e-08,144.3,144.27,10.7279431]
[1768488873193,1e-08,144.3,144.27,1.63129514]
[1768488873601,1.73809475,144.3,144.25,6.93232681]
[1768488873805,1.73809475,144.3,144.25,17.66026991]
[1768488874414,1e-08,144.3,144.26,10.7279431]
[1768488874615,1e-08,144.3,144.26,1.63129514]
[1768488874928,1e-08,144.3,144.27,10.7279431]
[1768488875115,1e-08,144.3,144.27,1.63129514]
[1768488875312,1e-08,144.3,144.29,10.7279431]
[1768488875510,1e-08,144.31,144.27,1.63129514]
[1768488875819,0.1,144.35,144.31,1.63129514]
[1768488876018,12.56603784,144.35,144.28,1.63129514]
[1768488876224,1.73809474,144.33,144.26,14.27129514]
[1768488876409,1.73809474,144.33,144.27,10.7279431]
[1768488876715,1.73809474,144.33,144.28,6.93096756]
[1768488877017,1.83809474,144.35,144.29,10.7279431]
[1768488877210,1.83809474,144.35,144.3,12.35923824]
[1768488877521,0.1,144.35,144.3,1.63129514]
[1768488878019,0.1,144.35,144.29,10.7279431]
[1768488878020,1.73809474,144.34,144.29,10.7279431]
[1768488878204,1.73809474,144.34,144.29,12.64]
[1768488878397,1.73809474,144.34,144.28,8.5622627]
[1768488878922,1.73809474,144.34,144.28,6.93096756]
[1768488878923,1.73809474,144.33,144.28,6.93096756]
[1768488879094,1.73809474,144.31,144.27,12.64]
[1768488879301,1.73809474,144.31,144.25,17.3309603]
[1768488879302,1.67809475,144.31,144.25,17.3309603]
[1768488879602,10.7279431,144.31,144.25,6.93226831]
[1768488879796,0.14216157,144.32,144.24,19.57255525]
[1768488880117,0.14216157,144.32,144.24,19.57257786]
[1768488880299,0.14216157,144.32,144.25,6.93207986]
[1768488880713,6.92952671,144.31,144.25,6.93207986]
[1768488880907,7.07131272,144.32,144.25,17.66002296]
[1768488881202,29.96225035,144.33,144.26,10.7279431]
[1768488881203,1.73809474,144.33,144.26,10.7279431]
[1768488881409,8.32194728,144.32,144.25,25.89439753]
[1768488881610,8.32194728,144.32,144.25,32.47825007]
[1768488881815,8.32194728,144.32,144.25,25.89439753]
[1768488882121,1.73809474,144.31,144.25,8.563375]
[1768488882297,8.32194728,144.3,144.25,6.93207986]
[1768488882500,1.73809474,144.32,144.25,15.14722754]
[1768488882816,15.25097158,144.33,144.27,8.56274311]
[1768488883200,8.32194728,144.33,144.27,32.47521559]
[1768488883399,8.32194728,144.32,144.27,8.56274311]
[1768488883604,8.32194728,144.32,144.27,6.93144797]
[1768488884000,1.73809474,144.27,144.19,1.63129514]
[1768488884201,12.78216157,144.31,144.22,8.21514768]
[1768488884412,12.78216157,144.31,144.2,1.63129514]
[1768488884618,24.25574172,144.3,144.22,6.58385254]
[1768488884921,6.58385254,144.28,144.21,8.56562701]
[1768488885129,6.58385254,144.27,144.22,1.63129514]
[1768488885419,6.52385255,144.27,144.22,1.63129514]
[1768488886031,13.51504536,144.28,144.22,15.14858791]
[1768488886232,6.93119282,144.28,144.22,15.14858791]
[1768488886418,1.88025631,144.29,144.23,1.63129514]
[1768488886419,15.25250546,144.29,144.23,1.63129514]
[1768488886729,1.73809474,144.28,144.22,8.56473537]
[1768488886916,1.73809474,144.28,144.22,15.14858791]
[1768488887115,8.32194728,144.28,144.23,6.58385254]
[1768488887316,1.73809474,144.28,144.23,8.21514768]
[1768488887728,1.73809474,144.3,144.25,8.21514768]
[1768488888026,1.73809474,144.3,144.26,6.93192846]
[1768488888220,8.66726183,144.32,144.26,8.5632236]
[1768488888424,8.32194728,144.31,144.26,6.93192846]
[1768488888729,1.73809474,144.31,144.25,15.14742477]
[1768488889029,1.73809474,144.31,144.25,8.56357223]
[1768488889202,1.73809474,144.29,144.25,6.93227709]
[1768488889532,1.73809474,144.29,144.24,13.51642055]
[1768488889742,1.73809474,144.28,144.24,6.93256801]
[1768488890229,8.66823819,144.3,144.24,8.56386315]
[1768488890520,8.66823819,144.3,144.22,17.33426858]
[1768488890521,6.58385254,144.27,144.22,1.63129514]
[1768488890725,1.73809474,144.28,144.23,6.93320919]
[1768488891103,24.39732234,144.3,144.24,8.70694212]
[1768488891104,15.63330896,144.3,144.24,8.70694212]
[1768488891312,9.04945642,144.3,144.24,8.70694212]
[1768488891518,15.63330896,144.3,144.24,8.70694212]
[1768488892113,9.04945642,144.3,144.24,15.63937091]
[1768488892310,2.11931297,144.3,144.25,2.12308958]
[1768488892527,0.14216157,144.33,144.25,8.70694212]
[1768488892738,2.21931297,144.35,144.28,8.70694212]
[1768488892918,8.70316551,144.34,144.28,8.70694212]
[1768488893117,2.11931297,144.32,144.25,2.12308958]
[1768488893315,1.99931299,144.32,144.26,2.12308958]
[1768488893519,6.92812722,144.34,144.28,6.58385254]
[1768488893706,13.51197976,144.34,144.28,8.70694212]
[1768488894032,13.51197976,144.34,144.29,9.05357679]
[1768488894231,6.92812722,144.34,144.29,9.05357679]
[1768488894437,6.92812722,144.34,144.27,29.96854006]
[1768488894438,6.58385254,144.33,144.27,21.34694212]
[1768488894620,6.58385254,144.32,144.27,12.64]
[1768488895131,6.58385254,144.33,144.27,12.64]
[1768488895336,8.70316551,144.33,144.27,14.76308958]
[1768488895534,8.70316551,144.32,144.27,21.6942413]
[1768488895839,8.70316551,144.32,144.27,19.57115172]
[1768488896039,8.70316551,144.32,144.27,12.64]
[1768488896245,15.63265901,144.32,144.27,12.64]
[1768488896535,2.11931297,144.32,144.27,19.57127163]
[1768488896735,15.63224293,144.32,144.27,19.57127163]
[1768488896925,15.63224293,144.32,144.27,6.93127163]
[1768488897517,9.04839039,144.32,144.26,9.05484631]
[1768488897715,9.04839039,144.32,144.26,15.63869885]
[1768488897941,15.63224293,144.32,144.27,6.93126878]
[1768488898238,2.11931297,144.32,144.27,6.93126878]
[1768488898421,2.11931297,144.32,144.27,15.6382109]
[1768488898627,9.04838234,144.32,144.27,9.05435836]
[1768488898947,2.11931297,144.32,144.27,15.6382109]
[1768488899131,2.11931297,144.32,144.27,9.05435836]
[1768488899323,2.11931297,144.32,144.27,15.6382109]
[1768488899831,6.92869414,144.33,144.27,9.05435836]
[1768488900038,6.92869414,144.33,144.28,8.70694212]
[1768488900428,13.51254668,144.33,144.28,2.12308958]
[1768488900645,6.92869414,144.33,144.28,9.0540231]
[1768488900845,6.92824295,144.34,144.28,6.93079724]
[1768488901024,19.66778704,144.35,144.3,2.12308958]
[1768488901343,0.1,144.35,144.3,2.12308958]
[1768488901519,0.1,144.35,144.31,6.58385254]
[1768488901719,2.21931297,144.35,144.31,6.58385254]
[1768488901942,9.14692361,144.35,144.31,6.58385254]
[1768488902144,2.21931297,144.35,144.31,6.58385254]
[1768488902929,2.11931297,144.34,144.26,19.452764]
[1768488903129,2.11931297,144.32,144.26,6.93152598]
[1768488903342,2.11931297,144.32,144.26,13.51537852]
[1768488903528,2.11931297,144.32,144.26,6.93152598]
[1768488903867,6.58385254,144.3,144.23,21.69627289]
[1768488904152,2.11931297,144.29,144.24,6.58385254]
[1768488904356,2.11931297,144.27,144.22,6.93376148]
[1768488904527,2.11931297,144.27,144.23,6.58385254]
[1768488904719,2.11931297,144.27,144.24,6.58385254]
[1768488905219,6.931264,144.28,144.22,9.05685106]
[1768488905438,17.32615511,144.3,144.22,9.05685106]
[1768488905439,9.04999018,144.29,144.24,6.58385254]
[1768488905641,2.11931297,144.28,144.23,6.58385254]
[1768488905825,2.05931298,144.28,144.22,9.05685106]
[1768488906026,2.05931298,144.28,144.23,6.58385254]
[1768488906229,6.93067721,144.29,144.24,6.58385254]
[1768488906445,6.93000693,144.3,144.25,6.58385254]
[1768488906634,6.92961172,144.31,144.26,6.58385254]
[1768488906948,13.51297606,144.32,144.26,8.70694212]
[1768488907158,13.51297606,144.32,144.26,6.58385254]
[1768488907316,6.92912352,144.32,144.26,8.70694212]
[1768488907631,6.92912352,144.32,144.24,24.26506999]
[1768488907632,7.02778273,144.35,144.28,2.12308958]
[1768488907834,7.02778273,144.35,144.29,6.58385254]
[1768488907835,2.11931297,144.34,144.29,6.58385254]
[1768488908038,2.11931297,144.34,144.28,2.12308958]
[1768488908235,9.1470957,144.35,144.31,6.58385254]
[1768488908533,2.11931297,144.34,144.29,9.0533879]
[1768488908755,2.11931297,144.33,144.28,6.58385254]
[1768488908943,2.11931297,144.33,144.29,6.58385254]
[1768488909138,7.1699443,144.35,144.3,6.58385254]
[1768488909356,2.11931297,144.34,144.3,6.92968601]
[1768488909559,2.11931297,144.34,144.3,6.58385254]
[1768488909958,2.11931297,144.34,144.29,6.58385254]
[1768488910160,2.11931297,144.34,144.28,9.05389889]
[1768488910161,2.11931297,144.34,144.28,6.93080931]
[1768488910353,9.0475873,144.34,144.28,6.93080931]
[1768488910657,9.0475873,144.34,144.3,6.58385254]
[1768488910658,2.11931297,144.34,144.3,6.58385254]
[1768488911160,0.1,144.35,144.31,6.58385254]
[1768488911361,0.1,144.35,144.3,2.12308958]
[1768488911659,0.1,144.35,144.31,6.58385254]
[1768488911868,0.1,144.35,144.3,2.12308958]
[1768488911869,2.21931297,144.35,144.3,8.70694212]
[1768488912061,2.15931298,144.35,144.31,6.58385254]
[1768488912256,2.11931297,144.34,144.29,9.05357523]
[1768488912441,2.05931298,144.34,144.31,6.58385254]
[1768488912641,2.05931298,144.34,144.32,6.58385254]
[1768488912858,0.04000001,144.35,144.32,6.58385254]
[1768488913161,6.96798091,144.35,144.31,6.58385254]
[1768488913842,6.90798092,144.35,144.3,6.92998113]
[1768488914044,6.90798092,144.35,144.29,2.12308958]
[1768488914368,2.11931297,144.34,144.3,6.58385254]
[1768488914555,9.04787944,144.33,144.3,6.58385254]
[1768488914871,2.11931297,144.32,144.29,6.58385254]
[1768488915065,2.05931298,144.32,144.3,6.58385254]
[1768488915244,6.92826474,144.34,144.3,6.58385254]
[1768488915444,6.92778726,144.35,144.31,6.58385254]
[1768488916876,0.1,144.37,144.32,6.58385254]
[1768488917046,2.21931297,144.37,144.34,6.58385254]
[1768488917246,9.1459748,144.37,144.33,6.58385254]
[1768488917846,0.1,144.37,144.35,6.58385254]
[1768488918366,0.1,144.37,144.34,6.58385254]
[1768488918751,0.1,144.37,144.35,6.58385254]
[1768488919555,0.1,144.37,144.33,9.05130173]
[1768488919750,0.1,144.37,144.35,6.58385254]
[1768488919951,0.1,144.37,144.32,2.12308958]
[1768488920158,2.21931297,144.37,144.3,2.12308958]
[1768488920364,2.21931297,144.37,144.32,6.58385254]
[1768488920671,2.21931297,144.37,144.35,8.89387732]
[1768488920672,0.1,144.37,144.35,8.89387732]
[1768488920852,2.31634204,144.37,144.31,2.31002478]
[1768488921062,2.31634204,144.37,144.34,6.58385254]
[1768488921265,2.21634204,144.36,144.34,6.58385254]
[1768488921569,2.15634205,144.36,144.3,2.31002478]
[1768488921773,31.0693195,144.37,144.31,6.58385254]
[1768488922072,0.14216157,144.36,144.33,6.58385254]
[1768488922369,0.14216157,144.36,144.29,2.31002478]
[1768488922575,0.14216157,144.36,144.32,6.58385254]
[1768488922753,6.92760651,144.35,144.29,9.24041865]
[1768488922953,6.92760651,144.35,144.31,6.58385254]
[1768488923458,2.21634204,144.34,144.29,2.31002478]
[1768488923658,2.21634204,144.34,144.31,6.58385254]
[1768488923846,2.21634204,144.35,144.31,6.58385254]
[1768488924050,2.21634204,144.35,144.28,6.93085123]
[1768488924250,2.21634204,144.35,144.31,6.58385254]
[1768488924469,37.0272625,144.36,144.26,2.35114249]
[1768488924470,2.39081741,144.33,144.26,2.35114249]
[1768488924669,2.39081741,144.31,144.27,6.58385254]
[1768488925070,2.39081741,144.31,144.28,6.58385254]
[1768488925467,9.32037199,144.31,144.26,9.28301927]
[1768488925662,9.32037199,144.31,144.27,6.58385254]
[1768488926072,9.32037199,144.31,144.26,2.35114249]
[1768488926073,2.39081741,144.31,144.26,9.28306306]
[1768488926280,2.39081741,144.31,144.28,6.58385254]
[1768488926572,9.31860912,144.35,144.3,6.58385254]
[1768488926754,115.74,144.36,144.32,6.58385254]
[1768488926755,12.64,144.36,144.32,6.58385254]
[1768488927163,2.39081741,144.35,144.3,6.9296335]
[1768488927361,2.39081741,144.35,144.31,6.58385254]
[1768488927958,2.39081741,144.35,144.3,6.58385254]
[1768488928365,2.39081741,144.35,144.32,6.58385254]
[1768488928564,2.39081741,144.35,144.3,9.2810543]
[1768488928870,0.1,144.37,144.33,2.35114249]
[1768488929064,2.49081741,144.37,144.34,6.58385254]
[1768488929468,2.49081741,144.37,144.33,2.35114249]
[1768488929674,9.41749862,144.37,144.34,6.58385254]
[1768488930018,2.39081741,144.36,144.33,6.58385254]
[1768488930167,0.1,144.37,144.35,6.58385254]
[1768488931079,0.1,144.37,144.35,2.35114249]
[1768488931282,0.1,144.37,144.33,9.27957707]
[1768488931471,0.1,144.37,144.33,2.35114249]
[1768488931672,0.1,144.37,144.35,6.58385254]
[1768488931973,2.49081741,144.37,144.31,14.99114249]
[1768488932178,2.39081741,144.36,144.33,6.58385254]
[1768488933065,2.39081741,144.35,144.29,21.92144099]
[1768488933288,2.39081741,144.35,144.32,6.58385254]
[1768488933667,2.39081741,144.35,144.27,2.35114249]
[1768488933868,2.39081741,144.33,144.3,6.58385254]
[1768488934095,2.33081742,144.33,144.3,6.58385254]
[1768488934296,0.14216157,144.34,144.31,6.58385254]
[1768488934787,0.14216157,144.34,144.3,6.58385254]
[1768488934993,0.14216157,144.34,144.29,2.35114249]
[1768488935203,7.0702518,144.34,144.3,6.58385254]
[1768488935384,0.14216157,144.34,144.31,6.58385254]
[1768488935592,7.07030248,144.34,144.3,6.58385254]
[1768488936003,6.92778998,144.35,144.32,6.58385254]
[1768488936181,6.92778998,144.35,144.31,6.58385254]
[1768488936511,9.31860739,144.35,144.3,2.35114249]
[1768488936807,9.31860739,144.35,144.31,6.58385254]
[1768488937185,2.39081741,144.35,144.32,6.58385254]
[1768488937506,12.78216157,144.36,144.33,6.58385254]
[1768488937805,2.49081741,144.37,144.33,8.93499503]
[1768488938100,0.1,144.37,144.33,2.35114249]